[Event "44th Chess Olympiad Women 2022"]
[Site "Chennai"]
[Date "2022.08.02"]
[Round "5.6"]
[White "Munkhzul, Turmunkh"]
[Black "Heinemann, Josefine"]
[Result "1/2-1/2"]
[ECO "C68"]
[WhiteElo "2277"]
[BlackElo "2321"]
[Annotator "RC"]
[PlyCount "88"]
[EventDate "2022.07.29"]
[EventType "team-tourn"]
[EventCountry "IND"]
[SourceTitle "playchess.com"]
[Source "ChessBase"]
[SourceQuality "1"]
[WhiteTeam "Mongolia"]
[BlackTeam "Germany"]
[WhiteTeamCountry "MGL"]
[BlackTeamCountry "GER"]
[TimeControl "40/5400+30:1800+30"]

1. e4 {[%emt 0:00:10]} e5 {[%emt 0:00:08]} 2. Nf3 {[%emt 0:00:07]} Nc6 {[%emt 0:00:07]} 3. Bb5 {[%emt 0:00:12]} a6 {[%emt 0:00:07]} 4. Bxc6 {[%emt 0:00:22]} dxc6 {[%emt 0:00:05]} 5. d4 {[%emt 0:00:13]} exd4 {[%emt 0:00:06]} 6. Qxd4 {[%emt 0:00:13]} Qxd4 {[%emt 0:00:06]} 7. Nxd4 {[%emt 0:00:03]} Bd7 {[%emt 0:00:10]} 8. Be3 {[%emt 0:00:49]} O-O-O {[%emt 0:01:14]} 9. Nc3 {[%emt 0:00:58]} Ne7 {[%emt 0:02:04]} 10. O-O-O {[%emt 0:04:01]} Ng6 {[%emt 0:02:06]} 11. f3 {[%emt 0:07:02]} h5 {[%emt 0:06:52]} 12. h4 {[%emt 0:06:04]} Bb4 {[%emt 0:06:10]} 13. Nce2 {[%emt 0:04:21]} Be7 {[%emt 0:05:29]} 14. Bf2 {[%emt 0:08:45]} c5 {[%emt 0:04:23]} 15. Nf5 {[%emt 0:02:49]} Bf6 {[%emt 0:04:47]} 16. Ne3 {[%emt 0:12:54]} Bc6 {[%emt 0:03:17]} 17. Nf5 {[%emt 0:02:03]} Bd7 {[%emt 0:04:01]} 18. Ne3 {[%emt 0:04:36]} Bc6 {[%emt 0:00:07]} 19. Rxd8+ {[%emt 0:03:46]} Kxd8 {[%emt 0:01:51]} 20. Bg3 {[%emt 0:01:10]} b6 {[%emt 0:03:52]} 21. Nf4 {[%emt 0:04:21]} Nxf4 {[%emt 0:00:50]} 22. Bxf4 {[%emt 0:00:07]} Kc8 {[%emt 0:00:25]} 23. Bg5 {[%emt 0:04:38]} Be5 {[%emt 0:04:57]} 24. Nc4 {[%emt 0:01:00]} Bg3 {[%emt 0:03:09]} 25. Rh3 {[%emt 0:03:17]} Bf2 {[%emt 0:00:22]} 26. Be3 {[%emt 0:00:35]} Bxe3+ {[%emt 0:01:20]} 27. Nxe3 {[%emt 0:00:05]} Re8 {[%emt 0:02:12]} 28. Kd2 {[%emt 0:04:37]} a5 {[%emt 0:02:04]} 29. Rg3 {[%emt 0:01:37]} g6 {[%emt 0:01:00]} 30. Rg5 {[%emt 0:00:13]} Kb7 {[%emt 0:04:19]} 31. g4 {[%emt 0:02:38]} hxg4 {[%emt 0:01:41]} 32. Rxg4 {[%emt 0:00:20]} Bd7 {[%emt 0:02:59]} 33. Rg1 {[%emt 0:02:54]} Rh8 {[%emt 0:03:47]} 34. Rh1 {[%emt 0:00:21]} a4 {[%emt 0:01:51]} 35. a3 {[%emt 0:01:52]} Be6 {[%emt 0:04:50]} 36. Ng2 {[%emt 0:01:03]} f6 {[%emt 0:03:17]} 37. Ke3 {[%emt 0:02:21]} Kc6 {[%emt 0:01:33]} 38. Rg1 {[%emt 0:01:40]} Bf7 {[%emt 0:02:03]} 39. Rd1 {[%emt 0:00:34]} b5 {[%emt 0:02:12]} 40. Ra1 {[%emt 0:05:48]} Kd6 {[%emt 0:01:50]} 41. Kf4 {[%emt 0:31:50]} Ke7 {[%emt 0:33:35]} 42. Ke3 {[%emt 0:05:19]} Kd6 {[%emt 0:00:47]} 43. Rd1+ {[%emt 0:03:17]} Kc6 {[%emt 0:00:09]} 44. Ra1 {[%emt 0:00:00]} Kd6 {[%emt 0:01:40]} 1/2-1/2

[Event "44th Chess Olympiad Women 2022"]
[Site "Chennai"]
[Date "2022.08.02"]
[Round "5.6"]
[White "Munkhzul, Davaakhuu"]
[Black "Schneider, Jana"]
[Result "0-1"]
[ECO "C95"]
[WhiteElo "2095"]
[BlackElo "2342"]
[Annotator "RC"]
[PlyCount "104"]
[EventDate "2022.07.29"]
[EventType "team-tourn"]
[EventCountry "IND"]
[SourceTitle "playchess.com"]
[Source "ChessBase"]
[SourceQuality "1"]
[WhiteTeam "Mongolia"]
[BlackTeam "Germany"]
[WhiteTeamCountry "MGL"]
[BlackTeamCountry "GER"]
[TimeControl "40/5400+30:1800+30"]

1. e4 {[%emt 0:00:02]} e5 {[%emt 0:00:14]} 2. Nf3 {[%emt 0:00:06]} Nc6 {[%emt 0:00:06]} 3. Bb5 {[%emt 0:00:04]} a6 {[%emt 0:00:08]} 4. Ba4 {[%emt 0:00:05]} Nf6 {[%emt 0:00:07]} 5. O-O {[%emt 0:00:19]} Be7 {[%emt 0:00:12]} 6. Re1 {[%emt 0:00:07]} b5 {[%emt 0:00:08]} 7. Bb3 {[%emt 0:00:04]} d6 {[%emt 0:00:12]} 8. c3 {[%emt 0:00:14]} O-O {[%emt 0:00:12]} 9. h3 {[%emt 0:00:05]} Nb8 {[%emt 0:00:13]} 10. d4 {[%emt 0:00:30]} Nbd7 {[%emt 0:00:08]} 11. Nbd2 {[%emt 0:00:21]} Bb7 {[%emt 0:00:29]} 12. Bc2 {[%emt 0:00:44]} Re8 {[%emt 0:00:33]} 13. Nf1 {[%emt 0:00:13]} Bf8 {[%emt 0:00:16]} 14. Ng3 {[%emt 0:00:34]} g6 {[%emt 0:00:16]} 15. a4 {[%emt 0:00:24]} c5 {[%emt 0:00:24]} 16. d5 {[%emt 0:03:59]} c4 {[%emt 0:00:29]} 17. Bg5 {[%emt 0:01:27]} Qc7 {[%emt 0:00:40]} 18. Qd2 {[%emt 0:01:31]} Reb8 {[%emt 0:00:56]} 19. Bh6 {[%emt 0:08:43]} Bxh6 {[%emt 0:02:46]} 20. Qxh6 {[%emt 0:00:14]} Qd8 {[%emt 0:00:11]} 21. Nh2 {[%emt 0:04:24]} Bc8 {[%emt 0:04:41]} 22. Re3 {[%emt 0:15:18]} Qf8 {[%emt 0:08:24]} 23. Qh4 {[%emt 0:02:00]} Kh8 {[%emt 0:13:14]} 24. f4 {[%emt 0:15:45]} Ng8 {[%emt 0:08:30]} 25. fxe5 {[%emt 0:10:00]} Nxe5 {[%emt 0:00:35]} 26. Rf1 {[%emt 0:01:25]} bxa4 {[%emt 0:04:59]} 27. Bxa4 {[%emt 0:09:29]} Rxb2 {[%emt 0:01:58]} 28. Ne2 {[%emt 0:10:24]} Ra2 {[%emt 0:06:19]} 29. Bc6 {[%emt 0:06:40]} Rb8 {[%emt 0:01:09]} 30. Nf3 {[%emt 0:00:44]} Qh6 {[%emt 0:07:07]} 31. Qxh6 {[%emt 0:00:17]} Nxh6 {[%emt 0:00:26]} 32. Nxe5 {[%emt 0:01:33]} dxe5 {[%emt 0:00:05]} 33. g4 {[%emt 0:03:04]} g5 {[%emt 0:10:17]} 34. Rd1 {[%emt 0:00:34]} Rbb2 {[%emt 0:01:54]} 35. Kf1 {[%emt 0:00:15]} Bb7 {[%emt 0:07:59]} 36. Nc1 {[%emt 0:02:39]} Ra1 {[%emt 0:02:05]} 37. Be8 {[%emt 0:01:22]} Ba8 {[%emt 0:11:07]} 38. Bc6 {[%emt 0:02:28]} Rb8 {[%emt 0:01:13]} 39. Bxa8 {[%emt 0:01:20]} Rxa8 {[%emt 0:00:02]} 40. Re2 {[%emt 0:00:16]} Ng8 {[%emt 0:03:52]} 41. Rf2 {[%emt 0:10:24]} Kg7 {[%emt 0:00:43]} 42. Rf5 {[%emt 0:02:57]} f6 {[%emt 0:02:12]} 43. Rf2 {[%emt 0:00:13]} Rb8 {[%emt 0:00:54]} 44. Rfd2 {[%emt 0:09:41]} Rbb1 {[%emt 0:01:54]} 45. d6 {[%emt 0:08:56]} Rxc1 {[%emt 0:01:44]} 46. Rxc1 {[%emt 0:00:02]} Rxc1+ {[%emt 0:00:06]} 47. Ke2 {[%emt 0:00:44]} Nh6 {[%emt 0:00:17]} 48. d7 {[%emt 0:00:58]} Nf7 {[%emt 0:00:05]} 49. Ra2 {[%emt 0:00:32]} Rxc3 {[%emt 0:00:21]} 50. Rxa6 {[%emt 0:00:03]} Rxh3 {[%emt 0:00:49]} 51. Rc6 {[%emt 0:00:33]} Rd3 {[%emt 0:00:11]} 52. Rc7 {[%emt 0:00:12]} Nd8 {[%emt 0:00:28]} 0-1

[Event "44th Chess Olympiad Women 2022"]
[Site "Chennai"]
[Date "2022.08.02"]
[Round "5.7"]
[White "Yip, Carissa"]
[Black "Paredes Bustamante, Paula Elizab"]
[Result "0-1"]
[ECO "C67"]
[WhiteElo "2416"]
[BlackElo "2162"]
[Annotator "RC"]
[PlyCount "122"]
[EventDate "2022.07.29"]
[EventType "team-tourn"]
[EventCountry "IND"]
[SourceTitle "playchess.com"]
[Source "ChessBase"]
[SourceQuality "1"]
[WhiteTeam "United States"]
[BlackTeam "Peru"]
[WhiteTeamCountry "USA"]
[BlackTeamCountry "PER"]
[TimeControl "40/5400+30:1800+30"]

1. e4 {[%emt 0:00:04]} e5 {[%emt 0:00:01]} 2. Nf3 {[%emt 0:00:08]} Nc6 {[%emt 0:00:04]} 3. Bb5 {[%emt 0:00:05]} Nf6 {[%emt 0:00:04]} 4. O-O {[%emt 0:00:54]} Nxe4 {[%emt 0:00:34]} 5. d4 {[%emt 0:00:06]} Nd6 {[%emt 0:02:28]} 6. dxe5 {[%emt 0:00:07]} Nxb5 {[%emt 0:00:15]} 7. a4 {[%emt 0:00:04]} d6 {[%emt 0:10:35]} 8. e6 {[%emt 0:00:07]} Bxe6 {[%emt 0:21:29]} 9. axb5 {[%emt 0:00:23]} Ne7 {[%emt 0:01:39]} 10. Nd4 {[%emt 0:01:09]} g6 {[%emt 0:15:49]} 11. Re1 {[%emt 0:10:26]} Qd7 {[%emt 0:00:22]} 12. Qf3 {[%emt 0:07:44]} Bg7 {[%emt 0:00:44]} 13. Nxe6 {[%emt 0:01:36]} fxe6 {[%emt 0:00:02]} 14. Nc3 {[%emt 0:00:18]} d5 {[%emt 0:24:38]} 15. Bg5 {[%emt 0:04:16]} Rf8 {[%emt 0:02:41]} 16. Qh3 {[%emt 0:02:59]} h6 {[%emt 0:01:54]} 17. Bxe7 {[%emt 0:12:54]} Kxe7 {[%emt 0:00:13]} 18. Rad1 {[%emt 0:00:13]} Rf5 {[%emt 0:01:03]} 19. Ne4 {[%emt 0:16:45]} Qxb5 {[%emt 0:01:19]} 20. c4 {[%emt 0:00:11]} Qxc4 {[%emt 0:04:21]} 21. Rc1 {[%emt 0:03:15]} Qd4 {[%emt 0:00:07]} 22. Ng3 {[%emt 0:05:28]} Qxf2+ {[%emt 0:02:32]} 23. Kh1 {[%emt 0:00:03]} Rf6 {[%emt 0:00:10]} 24. Rf1 {[%emt 0:00:05]} Qb6 {[%emt 0:00:23]} 25. Rxf6 {[%emt 0:00:46]} Bxf6 {[%emt 0:00:04]} 26. Qxh6 {[%emt 0:01:02]} Rh8 {[%emt 0:00:40]} 27. Qxg6 {[%emt 0:00:10]} Qxb2 {[%emt 0:02:28]} 28. Re1 {[%emt 0:00:28]} Rf8 {[%emt 0:03:44]} 29. Qf5 {[%emt 0:04:04]} Be5 {[%emt 0:00:28]} 30. Qg4 {[%emt 0:06:10]} Qd4 {[%emt 0:00:07]} 31. Qg6 {[%emt 0:03:19]} Kd6 {[%emt 0:00:30]} 32. Nf1 {[%emt 0:02:06]} Qh4 {[%emt 0:00:51]} 33. Ng3 {[%emt 0:00:48]} Qf6 {[%emt 0:01:13]} 34. Qd3 {[%emt 0:00:13]} Bxg3 {[%emt 0:00:31]} 35. Qxg3+ {[%emt 0:00:05]} Qf4 {[%emt 0:00:13]} 36. Qa3+ {[%emt 0:00:08]} c5 {[%emt 0:00:18]} 37. h3 {[%emt 0:00:02]} Qb4 {[%emt 0:01:02]} 38. Qg3+ {[%emt 0:00:04]} Qf4 {[%emt 0:00:17]} 39. Qg7 {[%emt 0:01:14]} Qf7 {[%emt 0:00:42]} 40. Qa1 {[%emt 0:00:15]} b6 {[%emt 0:00:35]} 41. Qe5+ {[%emt 0:33:57]} Kc6 {[%emt 0:30:40]} 42. Qg5 {[%emt 0:01:18]} Qf6 {[%emt 0:00:13]} 43. Qg4 {[%emt 0:00:54]} Kd6 {[%emt 0:00:30]} 44. Qa4 {[%emt 0:00:17]} Qg7 {[%emt 0:00:56]} 45. Qh4 {[%emt 0:02:27]} e5 {[%emt 0:00:10]} 46. Ra1 {[%emt 0:02:45]} e4 {[%emt 0:00:59]} 47. Rd1 {[%emt 0:00:03]} e3 {[%emt 0:02:23]} 48. Re1 {[%emt 0:04:11]} d4 {[%emt 0:00:00]} 49. Qe4 {[%emt 0:00:00]} Qe5 {[%emt 0:00:00]} 50. Qb7 {[%emt 0:00:00]} Qg3 {[%emt 0:00:00]} 51. Rg1 {[%emt 0:00:00]} Rh8 {[%emt 0:00:00]} 52. Rb1 {[%emt 0:00:00]} e2 {[%emt 0:00:00]} 53. Rxb6+ {[%emt 0:00:00]} axb6 {[%emt 0:00:00]} 54. Qxb6+ {[%emt 0:00:00]} Kd5 {[%emt 0:00:00]} 55. Qb7+ {[%emt 0:00:00]} Kc4 {[%emt 0:00:00]} 56. Qa6+ {[%emt 0:00:00]} Kc3 {[%emt 0:00:00]} 57. Qa3+ {[%emt 0:00:00]} Kd2 {[%emt 0:00:00]} 58. Qb2+ {[%emt 0:00:00]} Ke3 {[%emt 0:00:00]} 59. Qb3+ {[%emt 0:00:00]} Kf2 {[%emt 0:00:18]} 60. Qf7+ {[%emt 0:00:00]} Ke1 {[%emt 0:00:09]} 61. Qa2 {[%emt 0:00:00]} Kf1 {[%emt 0:00:35]} 0-1

[Event "44th Chess Olympiad Women 2022"]
[Site "Chennai"]
[Date "2022.08.02"]
[Round "5.7"]
[White "Tokhirjonova, Gulrukhbegim"]
[Black "Cori T., Deysi"]
[Result "1-0"]
[ECO "A13"]
[WhiteElo "2329"]
[BlackElo "2371"]
[Annotator "RC"]
[PlyCount "117"]
[EventDate "2022.07.29"]
[EventType "team-tourn"]
[EventCountry "IND"]
[SourceTitle "playchess.com"]
[Source "ChessBase"]
[SourceQuality "1"]
[WhiteTeam "United States"]
[BlackTeam "Peru"]
[WhiteTeamCountry "USA"]
[BlackTeamCountry "PER"]
[TimeControl "40/5400+30:1800+30"]

1. Nf3 {[%emt 0:00:33]} Nf6 {[%emt 0:02:50]} 2. c4 {[%emt 0:01:23]} e6 {[%emt 0:00:56]} 3. b3 {[%emt 0:01:23]} d5 {[%emt 0:02:55]} 4. e3 {[%emt 0:01:05]} Bd6 {[%emt 0:05:28]} 5. Bb2 {[%emt 0:01:43]} O-O {[%emt 0:04:14]} 6. Be2 {[%emt 0:01:39]} Nbd7 {[%emt 0:03:00]} 7. Nc3 {[%emt 0:06:52]} a6 {[%emt 0:05:40]} 8. O-O {[%emt 0:01:34]} Qe7 {[%emt 0:05:08]} 9. d4 {[%emt 0:01:52]} b6 {[%emt 0:02:36]} 10. cxd5 {[%emt 0:08:44]} exd5 {[%emt 0:00:09]} 11. Rc1 {[%emt 0:00:23]} Bb7 {[%emt 0:00:13]} 12. Qc2 {[%emt 0:05:31]} Rfe8 {[%emt 0:08:12]} 13. h3 {[%emt 0:05:51]} Rac8 {[%emt 0:20:02]} 14. Rfd1 {[%emt 0:05:16]} g6 {[%emt 0:07:45]} 15. Bd3 {[%emt 0:04:58]} Ne4 {[%emt 0:09:30]} 16. Qe2 {[%emt 0:04:25]} b5 {[%emt 0:05:32]} 17. Bb1 {[%emt 0:02:36]} f6 {[%emt 0:02:00]} 18. Ne1 {[%emt 0:02:26]} Ng5 {[%emt 0:05:03]} 19. Nd3 {[%emt 0:03:50]} Qe6 {[%emt 0:02:13]} 20. Qg4 {[%emt 0:03:14]} Qf7 {[%emt 0:00:55]} 21. Nf4 {[%emt 0:05:31]} Nf8 {[%emt 0:02:08]} 22. h4 {[%emt 0:08:13]} h5 {[%emt 0:00:25]} 23. Qg3 {[%emt 0:01:04]} Nge6 {[%emt 0:00:01]} 24. Bxg6 {[%emt 0:07:48]} Nxg6 {[%emt 0:00:05]} 25. Qxg6+ {[%emt 0:00:07]} Qxg6 {[%emt 0:00:07]} 26. Nxg6 {[%emt 0:00:04]} Kf7 {[%emt 0:01:07]} 27. Nf4 {[%emt 0:00:22]} Nxf4 {[%emt 0:03:33]} 28. exf4 {[%emt 0:00:10]} Bxf4 {[%emt 0:00:04]} 29. Rc2 {[%emt 0:00:40]} c5 {[%emt 0:00:22]} 30. g3 {[%emt 0:11:31]} Bd6 {[%emt 0:02:31]} 31. dxc5 {[%emt 0:02:40]} Rxc5 {[%emt 0:00:01]} 32. Rcd2 {[%emt 0:00:16]} Be5 {[%emt 0:00:19]} 33. Ne2 {[%emt 0:00:52]} Rec8 {[%emt 0:01:18]} 34. Bd4 {[%emt 0:00:29]} Rc2 {[%emt 0:00:24]} 35. f3 {[%emt 0:00:17]} b4 {[%emt 0:00:39]} 36. Kf2 {[%emt 0:00:20]} a5 {[%emt 0:00:29]} 37. f4 {[%emt 0:02:17]} Bd6 {[%emt 0:00:31]} 38. Be3 {[%emt 0:00:11]} Ba6 {[%emt 0:00:33]} 39. Nd4 {[%emt 0:00:08]} Rxd2+ {[%emt 0:00:30]} 40. Rxd2 {[%emt 0:00:01]} Rc1 {[%emt 0:00:30]} 41. Nf5 {[%emt 0:32:05]} Bf8 {[%emt 0:14:57]} 42. Bb6 {[%emt 0:00:00]} Rf1+ {[%emt 0:10:18]} 43. Kg2 {[%emt 0:00:00]} Rc1 {[%emt 0:02:24]} 44. Ne3 {[%emt 0:00:00]} Ke6 {[%emt 0:01:35]} 45. f5+ {[%emt 0:00:00]} Kd7 {[%emt 0:03:07]} 46. Rxd5+ {[%emt 0:00:00]} Kc6 {[%emt 0:00:01]} 47. Bd4 {[%emt 0:00:00]} Bh6 {[%emt 0:00:56]} 48. Rxa5 {[%emt 0:00:00]} Bd3 {[%emt 0:00:25]} 49. Kf2 {[%emt 0:00:00]} Rh1 {[%emt 0:00:43]} 50. Nd5 {[%emt 0:00:00]} Be4 {[%emt 0:00:32]} 51. Nxf6 {[%emt 0:00:00]} Rh2+ {[%emt 0:00:01]} 52. Kg1 {[%emt 0:00:00]} Rh1+ {[%emt 0:00:11]} 53. Kf2 {[%emt 0:00:00]} Rh2+ {[%emt 0:00:00]} 54. Kf1 {[%emt 0:00:00]} Bf3 {[%emt 0:01:11]} 55. Nxh5 {[%emt 0:00:00]} Rc2 {[%emt 0:01:08]} 56. Nf4 {[%emt 0:00:37]} Bf8 {[%emt 0:00:31]} 57. Ra8 {[%emt 0:01:58]} Bd6 {[%emt 0:00:30]} 58. Rc8+ {[%emt 0:00:07]} Bc7 {[%emt 0:00:05]} 59. Be5 {[%emt 0:00:14]} 1-0

[Event "44th Chess Olympiad Women 2022"]
[Site "Chennai"]
[Date "2022.08.02"]
[Round "5.7"]
[White "Chumpitaz, Ann"]
[Black "Krush, Irina"]
[Result "1-0"]
[ECO "B62"]
[WhiteElo "2278"]
[BlackElo "2430"]
[Annotator "RC"]
[PlyCount "47"]
[EventDate "2022.07.29"]
[EventType "team-tourn"]
[EventCountry "IND"]
[SourceTitle "playchess.com"]
[Source "ChessBase"]
[SourceQuality "1"]
[WhiteTeam "Peru"]
[BlackTeam "United States"]
[WhiteTeamCountry "PER"]
[BlackTeamCountry "USA"]
[TimeControl "40/5400+30:1800+30"]

1. e4 {[%emt 0:00:08]} c5 {[%emt 0:00:10]} 2. Nf3 {[%emt 0:00:00]} d6 {[%emt 0:00:00]} 3. d4 {[%emt 0:00:00]} cxd4 {[%emt 0:00:00]} 4. Nxd4 {[%emt 0:00:00]} Nf6 {[%emt 0:00:00]} 5. Nc3 {[%emt 0:00:00]} Bd7 {[%emt 0:00:10]} 6. Bg5 {[%emt 0:03:11]} e6 {[%emt 0:00:37]} 7. Qd3 {[%emt 0:01:21]} a6 {[%emt 0:01:19]} 8. f4 {[%emt 0:01:13]} Nc6 {[%emt 0:02:38]} 9. O-O-O {[%emt 0:20:14]} b5 {[%emt 0:14:30]} 10. e5 {[%emt 0:24:02]} dxe5 {[%emt 0:00:35]} 11. Nxc6 {[%emt 0:13:56]} Bxc6 {[%emt 0:00:27]} 12. Qg3 {[%emt 0:00:11]} Qa5 {[%emt 0:14:46]} 13. fxe5 {[%emt 0:01:02]} b4 {[%emt 0:01:40]} 14. exf6 {[%emt 0:01:22]} bxc3 {[%emt 0:03:35]} 15. Bc4 {[%emt 0:04:35]} Rg8 {[%emt 0:22:24]} 16. Bf4 {[%emt 0:02:01]} Ba3 {[%emt 0:02:05]} 17. Bc7 {[%emt 0:12:23]} Bxb2+ {[%emt 0:10:01]} 18. Kb1 {[%emt 0:00:03]} Qb4 {[%emt 0:00:42]} 19. Bb3 {[%emt 0:02:49]} a5 {[%emt 0:18:33]} 20. Rd6 {[%emt 0:00:36]} a4 {[%emt 0:05:18]} 21. Rhd1 {[%emt 0:00:18]} gxf6 {[%emt 0:00:59]} 22. Qxg8+ {[%emt 0:00:26]} Ke7 {[%emt 0:00:06]} 23. Rxe6+ {[%emt 0:00:26]} fxe6 {[%emt 0:00:10]} 24. Qxe6+ {[%emt 0:00:04]} 1-0

[Event "44th Chess Olympiad Women 2022"]
[Site "Chennai"]
[Date "2022.08.02"]
[Round "5.7"]
[White "Bravo Mallco, Kate Azumi"]
[Black "Abrahamyan, Tatev"]
[Result "1/2-1/2"]
[ECO "C10"]
[WhiteElo "1958"]
[BlackElo "2291"]
[Annotator "RC"]
[PlyCount "128"]
[EventDate "2022.07.29"]
[EventType "team-tourn"]
[EventCountry "IND"]
[SourceTitle "playchess.com"]
[Source "ChessBase"]
[SourceQuality "1"]
[WhiteTeam "Peru"]
[BlackTeam "United States"]
[WhiteTeamCountry "PER"]
[BlackTeamCountry "USA"]
[TimeControl "40/5400+30:1800+30"]

1. e4 {[%emt 0:00:03]} e6 {[%emt 0:00:06]} 2. d4 {[%emt 0:00:16]} d5 {[%emt 0:00:04]} 3. Nc3 {[%emt 0:00:17]} Nc6 {[%emt 0:00:12]} 4. Nf3 {[%emt 0:04:50]} Nf6 {[%emt 0:00:23]} 5. Bd3 {[%emt 0:08:38]} Nb4 {[%emt 0:02:17]} 6. exd5 {[%emt 0:03:56]} Nxd3+ {[%emt 0:05:40]} 7. Qxd3 {[%emt 0:00:03]} exd5 {[%emt 0:00:05]} 8. O-O {[%emt 0:00:26]} Be7 {[%emt 0:00:37]} 9. Ne5 {[%emt 0:02:31]} O-O {[%emt 0:00:53]} 10. h3 {[%emt 0:00:41]} c6 {[%emt 0:03:06]} 11. Re1 {[%emt 0:02:44]} Qc7 {[%emt 0:10:45]} 12. Bg5 {[%emt 0:06:19]} Be6 {[%emt 0:04:39]} 13. Re2 {[%emt 0:07:23]} Rae8 {[%emt 0:15:40]} 14. Rae1 {[%emt 0:00:31]} Nh5 {[%emt 0:06:28]} 15. Bc1 {[%emt 0:03:07]} Bd6 {[%emt 0:00:30]} 16. Qf3 {[%emt 0:01:33]} Nf6 {[%emt 0:01:30]} 17. Nd3 {[%emt 0:05:07]} Qb6 {[%emt 0:13:15]} 18. Bf4 {[%emt 0:04:26]} Be7 {[%emt 0:05:24]} 19. Be3 {[%emt 0:02:44]} Nd7 {[%emt 0:04:11]} 20. Nb1 {[%emt 0:07:28]} Nf6 {[%emt 0:08:56]} 21. Nd2 {[%emt 0:01:19]} Bd6 {[%emt 0:00:37]} 22. Bf4 {[%emt 0:01:14]} Bxf4 {[%emt 0:01:13]} 23. Qxf4 {[%emt 0:00:24]} Bd7 {[%emt 0:00:28]} 24. Rxe8 {[%emt 0:04:15]} Rxe8 {[%emt 0:00:05]} 25. Rxe8+ {[%emt 0:00:07]} Bxe8 {[%emt 0:00:06]} 26. a3 {[%emt 0:08:44]} h6 {[%emt 0:02:38]} 27. Qe5 {[%emt 0:00:43]} Qd8 {[%emt 0:02:24]} 28. Nc5 {[%emt 0:00:36]} Qc8 {[%emt 0:01:35]} 29. Nd3 {[%emt 0:06:15]} b6 {[%emt 0:01:38]} 30. Qe7 {[%emt 0:00:50]} Qd7 {[%emt 0:01:19]} 31. Qe3 {[%emt 0:00:20]} Kf8 {[%emt 0:02:04]} 32. b4 {[%emt 0:03:03]} Qe7 {[%emt 0:01:25]} 33. Ne5 {[%emt 0:00:02]} Ng8 {[%emt 0:03:08]} 34. Nf1 {[%emt 0:04:51]} f6 {[%emt 0:01:16]} 35. Qf4 {[%emt 0:00:22]} Qe6 {[%emt 0:00:41]} 36. Ne3 {[%emt 0:00:24]} Ne7 {[%emt 0:02:43]} 37. Nd3 {[%emt 0:01:12]} Ng6 {[%emt 0:01:26]} 38. Qb8 {[%emt 0:03:08]} Qd7 {[%emt 0:00:00]} 39. a4 {[%emt 0:00:14]} Ne7 {[%emt 0:00:00]} 40. a5 {[%emt 0:00:43]} Nc8 {[%emt 0:00:00]} 41. Kf1 {[%emt 0:06:04]} Ke7 {[%emt 0:07:49]} 42. Ke2 Kd8 {[%emt 0:06:57]} 43. h4 Qe7 {[%emt 0:11:54]} 44. axb6 {[%emt 0:12:06]} axb6 {[%emt 0:00:00]} 45. Kd1 {[%emt 0:03:10]} Bg6 {[%emt 0:00:00]} 46. Nf4 {[%emt 0:01:32]} Be4 {[%emt 0:00:00]} 47. c3 {[%emt 0:02:27]} g5 {[%emt 0:00:00]} 48. Ne2 {[%emt 0:00:58]} gxh4 {[%emt 0:02:05]} 49. Qf4 {[%emt 0:01:35]} Nd6 {[%emt 0:02:10]} 50. Qxh4 {[%emt 0:00:42]} Nb5 {[%emt 0:00:42]} 51. Kd2 {[%emt 0:00:53]} Na3 {[%emt 0:01:53]} 52. Qf4 {[%emt 0:01:23]} Kc8 {[%emt 0:00:49]} 53. Qxh6 {[%emt 0:05:27]} Nb1+ {[%emt 0:00:25]} 54. Kc1 {[%emt 0:00:01]} Kb7 {[%emt 0:00:43]} 55. Kb2 {[%emt 0:02:19]} Ka6 {[%emt 0:01:29]} 56. Ng3 {[%emt 0:02:10]} Bd3 {[%emt 0:00:32]} 57. Ngf5 {[%emt 0:01:22]} Bxf5 {[%emt 0:00:40]} 58. Nxf5 {[%emt 0:00:01]} Qe4 {[%emt 0:00:10]} 59. Nd6 {[%emt 0:00:46]} Qe1 {[%emt 0:00:52]} 60. Qe3 {[%emt 0:00:15]} Qd1 {[%emt 0:00:43]} 61. Qe7 {[%emt 0:03:45]} Qd2+ {[%emt 0:00:39]} 62. Kxb1 {[%emt 0:00:03]} Qd1+ {[%emt 0:00:03]} 63. Kb2 {[%emt 0:00:07]} Qd2+ {[%emt 0:00:06]} 64. Kb1 {[%emt 0:00:29]} Qd1+ {[%emt 0:00:04]} 1/2-1/2